fUST/lending_fUST_20241202
["ID","MTS","AMOUNT","RATE_DAILY","PERIOD"]
[343938309,1733104248917,-500.0,0.00027945,2]
[343938310,1733104248927,-1352.28,0.00027945,7]
[343938311,1733104248937,-1018.0,0.00027945,7]
[343938312,1733104248947,-500.0,0.00027945,7]
[343938313,1733104248959,-500.0,0.00027945,7]
[343938314,1733104248969,-829.06,0.00027945,7]
[343938315,1733104248979,-606.42,0.00027945,7]
[343938316,1733104248990,-500.0,0.00027945,7]
[343938317,1733104249000,-500.0,0.00027945,7]
[343938318,1733104249010,-500.0,0.00027945,7]
[343938319,1733104249019,-500.0,0.00027945,7]
[343938320,1733104249029,-500.0,0.00027945,7]
[343938321,1733104249038,-500.0,0.00027945,7]
[343938322,1733104249048,-500.0,0.00027945,7]
[343938323,1733104249058,-500.0,0.00027945,7]
[343938324,1733104249068,-500.0,0.00027945,7]
[343938325,1733104249078,-500.0,0.00027945,7]
[343938326,1733104249088,-500.0,0.00027945,7]
[343938327,1733104249102,-500.0,0.00027945,7]
[343938328,1733104249112,-500.0,0.00027945,7]
[343938329,1733104249122,-694.63,0.00027945,7]
[343938330,1733104249134,-500.0,0.00027945,7]
[343938331,1733104249144,-563.35,0.00027945,7]
[343938332,1733104249157,-500.0,0.00027945,7]
[343938333,1733104249167,-500.0,0.00027945,7]
[343938334,1733104249180,-754.66,0.00027945,7]
[343938335,1733104249194,-507.16842189,0.00027945,7]
[343938336,1733104249204,-500.0,0.00027945,7]
[343938337,1733104249215,-500.0,0.00027945,7]
[343938338,1733104249225,-500.0,0.00027945,7]
[343938339,1733104249236,-500.0,0.00027945,7]
[343938340,1733104249246,-613.96039425,0.00027945,2]
[343938341,1733104249256,-500.0,0.00027945,7]
[343938342,1733104249266,-599.73,0.00027945,7]
[343938343,1733104249276,-500.0,0.00027945,7]
[343938344,1733104249285,-500.0,0.00027945,7]
[343938345,1733104249296,-500.0,0.00027945,7]
[343938346,1733104249305,-500.0,0.00027945,7]
[343938347,1733104249315,-500.0,0.00027945,7]
[343938348,1733104249325,-500.0,0.00027945,7]
[343938349,1733104249336,-500.0,0.00027945,7]
[343938350,1733104249346,-284.53340121,0.00027945,7]
[343938351,1733104249355,-500.0,0.00027945,7]
[343938352,1733104249365,-500.0,0.00027945,7]
[343938353,1733104249375,-528.4,0.00027945,7]
[343938354,1733104249384,-500.0,0.00027945,7]
[343938355,1733104249393,-500.0,0.00027945,7]
[343938356,1733104249403,-179.45274643,0.00027945,7]
[343938357,1733104249416,-500.0,0.00027945,7]
[343938358,1733104249426,-500.0,0.00027945,7]
[343938359,1733104249436,-392.89776815,0.00027945,7]
[343938360,1733104249446,-500.0,0.00027945,7]
[343938361,1733104249456,-500.0,0.00027945,7]
[343938362,1733104249466,-681.53,0.00027945,7]
[343938363,1733104249476,-690.54,0.00027945,7]
[343938364,1733104249486,-217.55802757,0.00027945,7]
[343938365,1733104249495,-500.0,0.00027945,7]
[343938366,1733104249505,-500.0,0.00027945,7]
[343938367,1733104249515,-500.0,0.00027945,7]
[343938368,1733104249524,-988.0,0.00027945,7]
[343938369,1733104249534,-500.0,0.00027945,7]
[343938370,1733104249543,-500.0,0.00027945,7]
[343938371,1733104249553,-599.05669222,0.00027945,7]
[343938372,1733104249563,-500.0,0.00027945,7]
[343938373,1733104249572,-500.0,0.00027945,7]
[343938374,1733104249582,-500.0,0.00027945,7]
[343938375,1733104249592,-500.0,0.00027945,7]
[343938376,1733104249601,-705.16,0.00027945,7]
[343938377,1733104249611,-524.01,0.00027945,7]
[343938378,1733104249621,-2666.41,0.00027945,7]
[343938379,1733104249630,-879.29,0.00027945,7]
[343938380,1733104249640,-500.0,0.00027945,7]
[343938381,1733104249649,-500.0,0.00027945,7]
[343938382,1733104249662,-500.0,0.00027945,7]
[343938383,1733104249674,-500.0,0.00027945,7]
[343938384,1733104249683,-2330.3,0.00027945,7]
[343938385,1733104249692,-500.0,0.00027945,7]
[343938386,1733104249702,-500.0,0.00027945,7]
[343938387,1733104249711,-545.73,0.00027945,7]
[343938388,1733104249720,-500.0,0.00027945,7]
[343938389,1733104249730,-500.0,0.00027945,7]
[343938390,1733104249739,-500.0,0.00027945,7]
[343938391,1733104249749,-500.0,0.00027945,7]
[343938392,1733104249758,-839.15,0.00027945,7]
[343938393,1733104249768,-500.0,0.00027945,7]
[343938394,1733104249778,-500.0,0.00027945,7]
[343938395,1733104249787,-1164.23,0.00027945,7]
[343938396,1733104249797,-500.0,0.00027945,7]
[343938397,1733104249807,-500.0,0.00027945,7]
[343938398,1733104249816,-500.0,0.00027945,7]
[343938399,1733104249826,-500.0,0.00027945,7]
[343938400,1733104249835,-589.8,0.00027945,7]
[343938401,1733104249844,-500.0,0.00027945,7]
[343938402,1733104249854,-500.0,0.00027945,7]
[343938403,1733104249863,-500.0,0.00027945,7]
[343938404,1733104249873,-500.0,0.00027945,7]
[343938405,1733104249883,-741.12,0.00027945,7]
[343938406,1733104249892,-500.0,0.00027945,7]
[343938407,1733104249901,-35198.57,0.00027945,7]
[343938408,1733104249921,-500.0,0.00027945,7]
[343938409,1733104249931,-5653.56,0.00027945,7]
[343938410,1733104249939,-500.0,0.00027945,7]
[343938411,1733104249949,-306.5,0.00027945,7]
[343938412,1733104249959,-1087.13,0.00027945,7]
[343938413,1733104249968,-500.0,0.00027945,7]
[343938414,1733104249978,-1637.6,0.00027945,7]
[343938415,1733104249987,-500.0,0.00027945,7]
[343938416,1733104249997,-500.0,0.00027945,7]
[343938417,1733104250006,-32876.56895013,0.00028,10]
[343938418,1733104250015,-3619.30728479,0.00028,2]
[343938419,1733104250024,-28166.32831549,0.00028,2]
[343938420,1733104250034,-1032.33437584,0.00028,7]
[343938421,1733104250043,-500.0,0.00028,2]
[343938422,1733104250053,-900.0,0.00028,120]
[343938423,1733104250063,-151.0,0.00028,19]
[343938424,1733104250075,-151.0,0.00028,7]
[343938425,1733104250084,-201.115479,0.00028,7]
[343938426,1733104250094,-152.056676,0.00028,7]
[343938427,1733104250106,-151.0,0.00028,7]
[343938428,1733104250115,-151.0,0.00028,7]
[343938429,1733104250124,-152.184656,0.0002801,7]
[343938430,1733104250134,-254.287831,0.0002801,7]
[343938431,1733104250217,-200.909093,0.0002801,7]
[343938432,1733104250227,-629.16806613,0.00028029,2]
[343938433,1733104250237,-151.0,0.00028062,6]
[343938434,1733104250246,-151.0,0.000281,7]
[343938435,1733104250255,-321.316658,0.000281,7]
[343938436,1733104250265,-321.316658,0.000281,7]
[343938437,1733104250275,-151.0,0.000281,7]
[343938438,1733104250285,-1389.63,0.000281,31]
[343938439,1733104250294,-1389.63,0.000281,31]
[343938440,1733104250304,-1389.63,0.000281,31]
[343938441,1733104250314,-1389.63,0.000281,31]
[343938442,1733104250324,-1389.63,0.000281,31]
[343938443,1733104250333,-1389.63,0.000281,31]
[343938444,1733104250343,-1389.63,0.000281,31]
[343938445,1733104250353,-1389.63,0.000281,31]
[343938446,1733104250362,-1389.63,0.000281,31]
[343938447,1733104250377,-1389.63,0.000281,31]
[343938448,1733104250387,-1389.63,0.000281,31]
[343938449,1733104250395,-1389.63,0.000281,31]
[343938450,1733104250407,-1389.63,0.000281,31]
[343938451,1733104250416,-1389.63,0.000281,31]
[343938452,1733104250426,-1389.63,0.000281,31]
[343938453,1733104250435,-1389.63,0.000281,31]
[343938454,1733104250445,-1389.63,0.000281,31]
[343938455,1733104250454,-1389.63,0.000281,31]
[343938456,1733104250464,-1389.63,0.000281,31]
[343938457,1733104250475,-1389.63,0.000281,31]
[343938458,1733104250484,-1389.63,0.000281,31]
[343938459,1733104250494,-1389.63,0.000281,31]
[343938460,1733104250505,-1389.63,0.000281,31]
[343938461,1733104250515,-1389.63,0.000281,31]
[343938462,1733104250524,-7887.28239931,0.00028125,20]
[343938463,1733104250534,-807.52619011,0.00028126,2]
[343938464,1733104250544,-150.15,0.00028159,2]
[343938465,1733104250553,-152.50625824,0.00028159,2]
[343938466,1733104250563,-500.0,0.00028159,2]
[343938467,1733104250573,-150.15,0.00028159,2]
[343938468,1733104250582,-206.75384606,0.00028159,2]
[343938469,1733104250591,-150.15,0.00028159,2]
[343938470,1733104250600,-342.76530156,0.000282,2]
[343938471,1733104250610,-151.0,0.000282,19]
[343938472,1733104250619,-151.0,0.00028219,7]
[343938473,1733104250628,-151.0,0.00028219,7]
[343938474,1733104250637,-151.0,0.00028219,7]
[343938475,1733104250647,-151.0,0.00028219,7]
[343938476,1733104250658,-500.0,0.00028219,7]
[343938477,1733104250670,-777.87,0.00028219,7]
[343938478,1733104250679,-500.0,0.00028219,7]
[343938479,1733104250688,-500.0,0.00028219,7]
[343938480,1733104250697,-500.0,0.00028219,7]
[343938481,1733104250706,-206.07243793,0.00028219,7]
[343938482,1733104250716,-500.0,0.00028219,7]
[343938483,1733104250725,-896.2,0.00028219,7]
[343938484,1733104250734,-305.38168612,0.00028219,7]
[343938485,1733104250744,-500.0,0.00028219,7]
[343938486,1733104250753,-500.0,0.00028219,7]
[343938487,1733104250762,-500.0,0.00028219,7]
[343938488,1733104250771,-500.0,0.00028219,7]
[343938489,1733104250779,-361.23610863,0.00028219,7]
[343938490,1733104250788,-500.0,0.00028219,7]
[343938491,1733104250798,-151.0,0.00028219,7]
[343938492,1733104250807,-500.0,0.00028219,7]
[343938493,1733104250816,-151.0,0.00028219,7]
[343938494,1733104250825,-500.0,0.00028219,2]
[343938495,1733104250834,-1352.28,0.00028219,7]
[343938496,1733104250843,-1018.0,0.00028219,7]
[343938497,1733104250852,-500.0,0.00028219,7]
[343938498,1733104250862,-500.0,0.00028219,7]
[343938499,1733104250871,-829.06,0.00028219,7]
[343938500,1733104250881,-606.42,0.00028219,7]
[343938501,1733104250890,-500.0,0.00028219,7]
[343938502,1733104250899,-500.0,0.00028219,7]
[343938503,1733104250911,-500.0,0.00028219,7]
[343938504,1733104250921,-151.0,0.00028219,7]
[343938505,1733104250930,-500.0,0.00028219,7]
[343938506,1733104250940,-500.0,0.00028219,7]
[343938507,1733104250950,-500.0,0.00028219,7]
[343938508,1733104250959,-500.0,0.00028219,7]
[343938509,1733104250969,-500.0,0.00028219,7]
[343938510,1733104250979,-500.0,0.00028219,7]
[343938511,1733104250989,-332.79889756,0.00028219,7]
[343938512,1733104250999,-500.0,0.00028219,7]
[343938513,1733104251009,-500.0,0.00028219,7]
[343938514,1733104251019,-500.0,0.00028219,7]
[343938515,1733104251029,-694.63,0.00028219,7]
[343938516,1733104251038,-151.0,0.00028219,7]
[343938517,1733104251047,-500.0,0.00028219,7]
[343938518,1733104251056,-563.35,0.00028219,7]
[343938519,1733104251066,-500.0,0.00028219,7]
[343938520,1733104251075,-500.0,0.00028219,7]
[343938521,1733104251084,-754.66,0.00028219,7]
[343938522,1733104251098,-500.0,0.00028219,7]
[343938523,1733104251108,-500.0,0.00028219,7]
[343938524,1733104251117,-500.0,0.00028219,7]
[343938525,1733104251127,-500.0,0.00028219,7]
[343938526,1733104251138,-500.0,0.00028219,7]
[343938527,1733104251148,-174.148814,0.00028219,7]
[343938528,1733104251158,-599.73,0.00028219,7]
[343938529,1733104251168,-500.0,0.00028219,7]
[343938530,1733104251178,-500.0,0.00028219,7]
[343938531,1733104251188,-500.0,0.00028219,7]
[343938532,1733104251197,-500.0,0.00028219,7]
[343938533,1733104251207,-500.0,0.00028219,7]
[343938534,1733104251217,-151.0,0.00028219,7]
[343938535,1733104251226,-185.20119685,0.00028219,7]
[343938536,1733104251236,-500.0,0.00028219,7]
[343938537,1733104251245,-500.0,0.00028219,7]
[343938538,1733104251255,-500.0,0.00028219,7]
[343938539,1733104251265,-528.4,0.00028219,7]
[343938540,1733104251275,-500.0,0.00028219,7]
[343938541,1733104251285,-500.0,0.00028219,7]
[343938542,1733104251295,-500.0,0.00028219,7]
[343938543,1733104251305,-500.0,0.00028219,7]
[343938544,1733104251314,-500.0,0.00028219,7]
[343938545,1733104251323,-500.0,0.00028219,7]
[343938546,1733104251332,-681.53,0.00028219,7]
[343938547,1733104251342,-690.54,0.00028219,7]
[343938548,1733104251352,-500.0,0.00028219,7]
[343938549,1733104251362,-500.0,0.00028219,7]
[343938550,1733104251373,-500.0,0.00028219,7]
[343938551,1733104251382,-988.0,0.00028219,7]
[343938552,1733104251393,-500.0,0.00028219,7]
[343938553,1733104251403,-500.0,0.00028219,7]
[343938554,1733104251418,-500.0,0.00028219,7]
[343938555,1733104251428,-500.0,0.00028219,7]
[343938556,1733104251437,-500.0,0.00028219,7]
[343938557,1733104251447,-500.0,0.00028219,7]
[343938558,1733104251457,-705.16,0.00028219,7]
[343938559,1733104251467,-524.01,0.00028219,7]
[343938560,1733104251476,-2666.41,0.00028219,7]
[343938561,1733104251485,-879.29,0.00028219,7]
[343938562,1733104251495,-151.0,0.00028219,7]
[343938563,1733104251505,-500.0,0.00028219,7]
[343938564,1733104251515,-500.0,0.00028219,7]
[343938565,1733104251525,-500.0,0.00028219,7]
[343938566,1733104251534,-500.0,0.00028219,7]
[343938567,1733104251543,-2330.3,0.00028219,7]
[343938568,1733104251553,-151.0,0.00028219,7]
[343938569,1733104251562,-500.0,0.00028219,7]
[343938570,1733104251571,-500.0,0.00028219,7]
[343938571,1733104251580,-545.73,0.00028219,7]
[343938572,1733104251590,-500.0,0.00028219,7]
[343938573,1733104251599,-500.0,0.00028219,7]
[343938574,1733104251608,-500.0,0.00028219,7]
[343938575,1733104251618,-500.0,0.00028219,7]
[343938576,1733104251627,-839.15,0.00028219,7]
[343938577,1733104251636,-500.0,0.00028219,7]
[343938578,1733104251646,-500.0,0.00028219,7]
[343938579,1733104251655,-1164.23,0.00028219,7]
[343938580,1733104251666,-500.0,0.00028219,7]
[343938581,1733104251676,-500.0,0.00028219,7]
[343938582,1733104251686,-500.0,0.00028219,7]
[343938583,1733104251696,-500.0,0.00028219,7]
[343938584,1733104251705,-589.8,0.00028219,7]
[343938585,1733104251715,-500.0,0.00028219,7]
[343938586,1733104251724,-254.29369596,0.00028219,7]
[343938587,1733104251733,-500.0,0.00028219,7]
[343938588,1733104251743,-500.0,0.00028219,7]
[343938589,1733104251752,-741.12,0.00028219,7]
[343938590,1733104251761,-493.64046381,0.00028219,7]
[343938591,1733104251828,-35198.57,0.00028219,7]
[343938592,1733104251844,-500.0,0.00028219,7]
[343938593,1733104251854,-151.0,0.00028219,7]
[343938594,1733104251863,-5653.56,0.00028219,7]
[343938595,1733104251872,-500.0,0.00028219,7]
[343938596,1733104251881,-167.287492,0.00028219,7]
[343938597,1733104251890,-174.117131,0.00028219,7]
[343938598,1733104251900,-1087.13,0.00028219,7]
[343938599,1733104251911,-500.0,0.00028219,7]
[343938600,1733104251921,-1637.6,0.00028219,7]
[343938601,1733104251931,-500.0,0.00028219,7]
[343938602,1733104251940,-500.0,0.00028219,7]
[343938603,1733104251949,-501.01931317,0.00028221,5]
[343938604,1733104251958,-501.91489071,0.00028221,5]
[343938605,1733104251967,-1000.0,0.00028221,5]
[343938606,1733104251977,-509.3250166,0.00028221,5]
[343938607,1733104251986,-152.1113,0.00028229,2]
[343938608,1733104251996,-160.178672,0.00028229,2]
[343938609,1733104252006,-267.643593,0.00028229,2]
[343938610,1733104252016,-248.181594,0.00028229,2]
[343938611,1733104252025,-873.733188,0.00028229,2]
[343938612,1733104252035,-438.738,0.00028255,15]
[343938613,1733104252044,-151.0,0.000283,18]
[343938614,1733104252053,-157.51329,0.000284,17]
[343938615,1733104252063,-150.235136,0.000284,2]
[343938616,1733104252073,-807.52619011,0.00028408,2]
[343938617,1733104252082,-251.16575082,0.00028433,2]
[343938618,1733104252093,-500.0,0.00028433,2]
[343938619,1733104252105,-150.15,0.00028433,2]
[343938620,1733104252114,-284.93125903,0.00028433,2]
[343938621,1733104252124,-202.50972583,0.00028473,5]
[343938622,1733104252134,-151.0,0.00028493,7]
[343938623,1733104252143,-321.316658,0.00028493,7]
[343938624,1733104252153,-321.316658,0.00028493,7]
[343938625,1733104252164,-151.0,0.00028493,7]
[343938626,1733104252174,-151.0,0.00028493,7]
[343938627,1733104252185,-500.0,0.00028493,7]
[343938628,1733104252196,-777.87,0.00028493,7]
[343938629,1733104252205,-500.0,0.00028493,7]
[343938630,1733104252215,-500.0,0.00028493,7]
[343938631,1733104252224,-500.0,0.00028493,7]
[343938632,1733104252233,-500.0,0.00028493,7]
[343938633,1733104252242,-896.2,0.00028493,7]
[343938634,1733104252252,-500.0,0.00028493,7]
[343938635,1733104252261,-500.0,0.00028493,7]
[343938636,1733104252272,-500.0,0.00028493,7]
[343938637,1733104252281,-153.787022,0.00028493,7]
[343938638,1733104252291,-500.0,0.00028493,7]
[343938639,1733104252300,-500.0,0.00028493,7]
[343938640,1733104252309,-500.0,0.00028493,7]
[343938641,1733104252319,-500.0,0.00028493,2]
[343938642,1733104252328,-1352.28,0.00028493,7]
[343938643,1733104252337,-1018.0,0.00028493,7]
[343938644,1733104252347,-500.0,0.00028493,7]
[343938645,1733104252356,-500.0,0.00028493,7]
[343938646,1733104252365,-829.06,0.00028493,7]
[343938647,1733104252375,-606.42,0.00028493,7]
[343938648,1733104252385,-500.0,0.00028493,7]
[343938649,1733104252394,-500.0,0.00028493,7]
[343938650,1733104252404,-500.0,0.00028493,7]
[343938651,1733104252415,-500.0,0.00028493,7]
[343938652,1733104252424,-500.0,0.00028493,7]
[343938653,1733104252434,-500.0,0.00028493,7]
[343938654,1733104252443,-500.0,0.00028493,7]
[343938655,1733104252452,-500.0,0.00028493,7]
[343938656,1733104252462,-500.0,0.00028493,7]
[343938657,1733104252471,-500.0,0.00028493,7]
[343938658,1733104252481,-500.0,0.00028493,7]
[343938659,1733104252491,-500.0,0.00028493,7]
[343938660,1733104252501,-694.63,0.00028493,7]
[343938661,1733104252511,-500.0,0.00028493,7]
[343938662,1733104252521,-563.35,0.00028493,7]
[343938663,1733104252531,-500.0,0.00028493,7]
[343938664,1733104252541,-500.0,0.00028493,7]
[343938665,1733104252551,-754.66,0.00028493,7]
[343938666,1733104252561,-500.0,0.00028493,7]
[343938667,1733104252571,-500.0,0.00028493,7]
[343938668,1733104252581,-500.0,0.00028493,7]
[343938669,1733104252591,-500.0,0.00028493,7]
[343938670,1733104252602,-500.0,0.00028493,7]
[343938671,1733104252612,-599.73,0.00028493,7]
[343938672,1733104252622,-500.0,0.00028493,7]
[343938673,1733104252631,-500.0,0.00028493,7]
[343938674,1733104252640,-500.0,0.00028493,7]
[343938675,1733104252649,-500.0,0.00028493,7]
[343938676,1733104252662,-500.0,0.00028493,7]
[343938677,1733104252673,-500.0,0.00028493,7]
[343938678,1733104252682,-500.0,0.00028493,7]
[343938679,1733104252692,-500.0,0.00028493,7]
[343938680,1733104252703,-528.4,0.00028493,7]
[343938681,1733104252714,-500.0,0.00028493,7]
[343938682,1733104252724,-500.0,0.00028493,7]
[343938683,1733104252734,-500.0,0.00028493,7]
[343938684,1733104252744,-500.0,0.00028493,7]
[343938685,1733104252754,-500.0,0.00028493,7]
[343938686,1733104252763,-500.0,0.00028493,7]
[343938687,1733104252774,-681.53,0.00028493,7]
[343938688,1733104252784,-690.54,0.00028493,7]
[343938689,1733104252793,-500.0,0.00028493,7]
[343938690,1733104252803,-500.0,0.00028493,7]
[343938691,1733104252813,-500.0,0.00028493,7]
[343938692,1733104252822,-988.0,0.00028493,7]
[343938693,1733104252831,-500.0,0.00028493,7]
[343938694,1733104252841,-500.0,0.00028493,7]
[343938695,1733104252851,-500.0,0.00028493,7]
[343938696,1733104252860,-500.0,0.00028493,7]
[343938697,1733104252870,-500.0,0.00028493,7]
[343938698,1733104252879,-500.0,0.00028493,7]
[343938699,1733104252889,-705.16,0.00028493,7]
[343938700,1733104252899,-524.01,0.00028493,7]
[343938701,1733104252910,-2666.41,0.00028493,7]
[343938702,1733104252920,-879.29,0.00028493,7]
[343938703,1733104252929,-500.0,0.00028493,7]
[343938704,1733104252939,-500.0,0.00028493,7]
[343938705,1733104252949,-500.0,0.00028493,7]
[343938706,1733104252959,-500.0,0.00028493,7]
[343938707,1733104252969,-2330.3,0.00028493,7]
[343938708,1733104252978,-516.00185164,0.00028493,7]
[343938709,1733104252989,-500.0,0.00028493,7]
[343938710,1733104252999,-545.73,0.00028493,7]
[343938711,1733104253008,-500.0,0.00028493,7]
[343938712,1733104253018,-500.0,0.00028493,7]
[343938713,1733104253027,-500.0,0.00028493,7]
[343938714,1733104253037,-500.0,0.00028493,7]
[343938715,1733104253046,-839.15,0.00028493,7]
[343938716,1733104253056,-500.0,0.00028493,7]
[343938717,1733104253065,-500.0,0.00028493,7]
[343938718,1733104253075,-1164.23,0.00028493,7]
[343938719,1733104253085,-500.0,0.00028493,7]
[343938720,1733104253097,-500.0,0.00028493,7]
[343938721,1733104253110,-500.0,0.00028493,7]
[343938722,1733104253119,-500.0,0.00028493,7]
[343938723,1733104253129,-589.8,0.00028493,7]
[343938724,1733104253141,-500.0,0.00028493,7]
[343938725,1733104253151,-500.0,0.00028493,7]
[343938726,1733104253163,-500.0,0.00028493,7]
[343938727,1733104253176,-741.12,0.00028493,7]
[343938728,1733104253186,-35198.57,0.00028493,7]
[343938729,1733104253195,-500.0,0.00028493,7]
[343938730,1733104253206,-151.0,0.00028493,7]
[343938731,1733104253216,-5653.56,0.00028493,7]
[343938732,1733104253225,-500.0,0.00028493,7]
[343938733,1733104253235,-1087.13,0.00028493,7]
[343938734,1733104253245,-535.12106426,0.00028493,7]
[343938735,1733104253255,-1637.6,0.00028493,7]
[343938736,1733104253264,-500.0,0.00028493,7]
[343938737,1733104253274,-500.0,0.00028493,7]
[343938738,1733104253283,-305.0,0.000285,2]
[343938739,1733104253357,-151.0,0.00028553,6]
[343938740,1733104253367,-152.1113,0.00028573,2]
[343938741,1733104253377,-160.178672,0.00028573,2]
[343938742,1733104253387,-267.643593,0.00028573,2]
[343938743,1733104253397,-248.181594,0.00028573,2]
[343938744,1733104253406,-873.733188,0.00028573,2]
[343938745,1733104253419,-807.52619011,0.00028689,2]
[343938746,1733104253429,-3200.0,0.00028703,2]
[343938747,1733104253438,-151.0,0.00028703,7]
[343938748,1733104253448,-604.72771858,0.00028707,2]
[343938749,1733104253457,-150.15,0.00028707,2]
[343938750,1733104253467,-499.84,0.00028757,3]
[343938751,1733104253477,-151.0,0.00028767,7]
[343938752,1733104253488,-151.0,0.00028767,7]
[343938753,1733104253497,-151.0,0.00028767,7]
[343938754,1733104253507,-151.0,0.00028767,7]
[343938755,1733104253517,-151.0,0.00028767,7]
[343938756,1733104253527,-500.0,0.00028767,7]
[343938757,1733104253536,-777.87,0.00028767,7]
[343938758,1733104253546,-500.0,0.00028767,7]
[343938759,1733104253555,-500.0,0.00028767,7]
[343938760,1733104253565,-500.0,0.00028767,7]
[343938761,1733104253575,-500.0,0.00028767,7]
[343938762,1733104253584,-151.0,0.00028767,7]
[343938763,1733104253597,-151.0,0.00028767,7]
[343938764,1733104253607,-896.2,0.00028767,7]
[343938765,1733104253617,-500.0,0.00028767,7]
[343938766,1733104253627,-500.0,0.00028767,7]
[343938767,1733104253636,-509.08941307,0.00028767,7]
[343938768,1733104253646,-500.0,0.00028767,7]
[343938769,1733104253656,-500.0,0.00028767,7]
[343938770,1733104253668,-151.0,0.00028767,7]
[343938771,1733104253678,-500.0,0.00028767,7]
[343938772,1733104253688,-151.0,0.00028767,7]
[343938773,1733104253698,-500.0,0.00028767,2]
[343938774,1733104253707,-1352.28,0.00028767,7]
[343938775,1733104253717,-1018.0,0.00028767,7]
[343938776,1733104253728,-500.0,0.00028767,7]
[343938777,1733104253738,-500.0,0.00028767,7]
[343938778,1733104253748,-829.06,0.00028767,7]
[343938779,1733104253757,-606.42,0.00028767,7]
[343938780,1733104253767,-500.0,0.00028767,7]
[343938781,1733104253777,-500.0,0.00028767,7]
[343938782,1733104253786,-500.0,0.00028767,7]
[343938783,1733104253796,-151.0,0.00028767,7]
[343938784,1733104253806,-500.0,0.00028767,7]
[343938785,1733104253815,-500.0,0.00028767,4]
[343938786,1733104253826,-500.0,0.00028767,7]
[343938787,1733104253838,-568.6742685,0.00028767,7]
[343938788,1733104253848,-500.0,0.00028767,7]
[343938789,1733104253857,-500.0,0.00028767,7]
[343938790,1733104253866,-500.0,0.00028767,7]
[343938791,1733104253876,-500.0,0.00028767,7]
[343938792,1733104253885,-500.0,0.00028767,7]
[343938793,1733104253895,-500.0,0.00028767,7]
[343938794,1733104253905,-694.63,0.00028767,7]
[343938795,1733104253915,-151.0,0.00028767,7]
[343938796,1733104253925,-500.0,0.00028767,7]
[343938797,1733104253934,-563.35,0.00028767,7]
[343938798,1733104253945,-500.0,0.00028767,7]
[343938799,1733104253955,-500.0,0.00028767,7]
[343938800,1733104253964,-754.66,0.00028767,7]
[343938801,1733104253974,-500.0,0.00028767,7]
[343938802,1733104253983,-500.0,0.00028767,7]
[343938803,1733104253992,-500.0,0.00028767,7]
[343938804,1733104254001,-459.90220577,0.00028767,7]
[343938805,1733104254011,-500.0,0.00028767,7]
[343938806,1733104254020,-599.73,0.00028767,7]
[343938807,1733104254030,-500.0,0.00028767,7]
[343938808,1733104254039,-500.0,0.00028767,7]